[Event "*** Titled Tuesday 3|2 Blitz (Early)"]
[Site "Chess.com"]
[Date "2017.01.03"]
[Round "1"]
[White "abubakrtagelsir"]
[Black "BillieKimbah"]
[Result "0-1"]
[WhiteElo "2301"]
[BlackElo "2587"]
[TimeControl "180+2"]
[EndTime "11:10:55 PST"]
[Termination "BillieKimbah won by resignation"]

1. e4 {[%clk 0:03:00.1]} 1... c5 {[%clk 0:02:59.4]} 2. Nc3 {[%clk 0:02:59.7]}
2... e6 {[%clk 0:02:58.1]} 3. f4 {[%clk 0:02:59.7]} 3... d5 {[%clk 0:02:58.2]}
4. Nf3 {[%clk 0:03:00]} 4... dxe4 {[%clk 0:02:50.4]} 5. Nxe4 {[%clk 0:03:00.2]}
5... Nh6 {[%clk 0:02:51.8]} 6. g3 {[%clk 0:02:58.7]} 6... Nf5 {[%clk 0:02:51.5]}
7. Bg2 {[%clk 0:02:57.9]} 7... Nc6 {[%clk 0:02:47.2]} 8. d3 {[%clk 0:02:57.5]}
8... Be7 {[%clk 0:02:47.9]} 9. O-O {[%clk 0:02:57.7]} 9... O-O {[%clk
0:02:48.2]} 10. h3 {[%clk 0:02:53.4]} 10... b6 {[%clk 0:02:46.9]} 11. c3 {[%clk
0:02:49.8]} 11... Ba6 {[%clk 0:02:40.5]} 12. c4 {[%clk 0:02:41.9]} 12... Bb7
{[%clk 0:02:38.4]} 13. g4 {[%clk 0:02:41.9]} 13... Nfd4 {[%clk 0:02:35.5]} 14.
Nxd4 {[%clk 0:02:15.5]} 14... Qxd4+ {[%clk 0:02:35.2]} 15. Nf2 {[%clk
0:02:11.1]} 15... Rad8 {[%clk 0:02:29.6]} 16. Qe2 {[%clk 0:02:10.7]} 16... Qd7
{[%clk 0:02:29.7]} 17. Be3 {[%clk 0:02:06.9]} 17... Bf6 {[%clk 0:02:21.9]} 18.
Rad1 {[%clk 0:02:01.7]} 18... Nd4 {[%clk 0:02:21.6]} 19. Bxd4 {[%clk 0:01:56.8]}
19... Bxd4 {[%clk 0:02:19.8]} 20. b3 {[%clk 0:01:54.7]} 20... b5 {[%clk
0:01:57.2]} 21. Bxb7 {[%clk 0:01:53.8]} 21... Qxb7 {[%clk 0:01:57.5]} 22. Kh2
{[%clk 0:01:49.4]} 22... Rd7 {[%clk 0:01:54.2]} 23. Ne4 {[%clk 0:01:48.4]} 23...
Rfd8 {[%clk 0:01:53]} 24. Qf3 {[%clk 0:01:48.4]} 24... bxc4 {[%clk 0:01:45.7]}
25. dxc4 {[%clk 0:01:43.7]} 25... f5 {[%clk 0:01:28.8]} 26. gxf5 {[%clk
0:01:06.2]} 26... exf5 {[%clk 0:01:28.6]} 27. Ng5 {[%clk 0:00:51.6]} 27... Qxf3
{[%clk 0:01:25.4]} 28. Rxf3 {[%clk 0:00:45]} 28... Re8 {[%clk 0:01:18.3]} 29.
Rfd3 {[%clk 0:00:34.8]} 29... Re2+ {[%clk 0:01:17.4]} 30. Kg3 {[%clk 0:00:35.3]}
30... Rde7 {[%clk 0:01:02.9]} 31. h4 {[%clk 0:00:26.6]} 31... Rxa2 {[%clk
0:01:00.3]} 32. R1d2 {[%clk 0:00:27.2]} 32... Ra1 {[%clk 0:00:59.5]} 33. Rd1
{[%clk 0:00:26.4]} 33... Rxd1 {[%clk 0:01:00]} 34. Rxd1 {[%clk 0:00:27.1]} 34...
Re3+ {[%clk 0:01:01.6]} 35. Nf3 {[%clk 0:00:27.7]} 35... Rxb3 {[%clk 0:01:02.1]}
36. Rd2 {[%clk 0:00:26.3]} 36... a5 {[%clk 0:00:53.9]} 37. Ra2 {[%clk
0:00:25.4]} 37... Bc3 {[%clk 0:00:54.7]} 38. Kg2 {[%clk 0:00:20.6]} 38... Kf7
{[%clk 0:00:51.1]} 39. Ne5+ {[%clk 0:00:20.3]} 39... Bxe5 {[%clk 0:00:48.1]} 40.
fxe5 {[%clk 0:00:20.9]} 40... Re3 {[%clk 0:00:49.5]} 41. Rxa5 {[%clk 0:00:18.6]}
41... Rxe5 {[%clk 0:00:50.9]} 42. Kf3 {[%clk 0:00:19.7]} 42... Kf6 {[%clk
0:00:49.4]} 43. Ra7 {[%clk 0:00:20.2]} 43... Re7 {[%clk 0:00:47.8]} 44. Ra6+
{[%clk 0:00:20.9]} 44... Re6 {[%clk 0:00:48.8]} 45. Ra5 {[%clk 0:00:19.7]} 45...
Rc6 {[%clk 0:00:49.3]} 46. Kf4 {[%clk 0:00:18.8]} 46... g6 {[%clk 0:00:49.4]}
47. Ra7 {[%clk 0:00:18.8]} 47... h6 {[%clk 0:00:50]} 48. Ra8 {[%clk 0:00:16]}
48... g5+ {[%clk 0:00:50.8]} 49. hxg5+ {[%clk 0:00:17.1]} 49... hxg5+ {[%clk
0:00:52.4]} 50. Kf3 {[%clk 0:00:18.1]} 50... Ke5 {[%clk 0:00:54]} 51. Rd8 {[%clk
0:00:18.1]} 51... Rd6 {[%clk 0:00:53.3]} 52. Rf8 {[%clk 0:00:18.8]} 52... g4+
{[%clk 0:00:52.4]} 53. Ke3 {[%clk 0:00:19.2]} 53... f4+ {[%clk 0:00:51.4]} 54.
Ke2 {[%clk 0:00:20.4]} 54... Ke4 {[%clk 0:00:49]} 55. Re8+ {[%clk 0:00:20.9]}
55... Kd4 {[%clk 0:00:49.6]} 56. Rf8 {[%clk 0:00:21.4]} 56... f3+ {[%clk
0:00:49.8]} 57. Kf2 {[%clk 0:00:22.3]} 57... Kxc4 {[%clk 0:00:51.3]} 58. Kg3
{[%clk 0:00:23.4]} 58... Rd4 {[%clk 0:00:51.9]} 59. Ra8 {[%clk 0:00:23.6]} 59...
Kb4 {[%clk 0:00:51.2]} 60. Rb8+ {[%clk 0:00:24.2]} 60... Kc3 {[%clk 0:00:52]}
61. Kf2 {[%clk 0:00:23.3]} 61... c4 {[%clk 0:00:52.8]} 62. Ke3 {[%clk
0:00:24.1]} 62... Rd3+ {[%clk 0:00:52.3]} 63. Kf2 {[%clk 0:00:25.2]} 63... Kc2
{[%clk 0:00:52.1]} 64. Ra8 {[%clk 0:00:24.3]} 64... c3 {[%clk 0:00:52.7]} 65.
Ra2+ {[%clk 0:00:24.4]} 65... Kb1 {[%clk 0:00:53.5]} 66. Ra8 {[%clk 0:00:24.6]}
66... c2 {[%clk 0:00:54.3]} 67. Rb8+ {[%clk 0:00:25.4]} 67... Ka2 {[%clk
0:00:55.1]} 68. Ra8+ {[%clk 0:00:26.1]} 68... Kb2 {[%clk 0:00:56]} 69. Rb8+
{[%clk 0:00:27.2]} 69... Rb3 {[%clk 0:00:56.3]} 70. Rc8 {[%clk 0:00:28.2]} 70...
c1=Q {[%clk 0:00:55.9]} 0-1

[Event "*** Titled Tuesday 3|2 Blitz (Early)"]
[Site "Chess.com"]
[Date "2017.01.03"]
[Round "1"]
[White "FastChance"]
[Black "ajkom197"]
[Result "0-1"]
[WhiteElo "2495"]
[BlackElo "2296"]
[TimeControl "180+2"]
[EndTime "11:11:22 PST"]
[Termination "ajkom197 won by checkmate"]

1. d4 {[%clk 0:03:01.9]} 1... c6 {[%clk 0:03:02]} 2. Bf4 {[%clk 0:03:01.6]} 2...
d5 {[%clk 0:03:03.7]} 3. e3 {[%clk 0:03:02.7]} 3... Nf6 {[%clk 0:03:04.9]} 4.
Nf3 {[%clk 0:03:03.8]} 4... Bf5 {[%clk 0:03:05.5]} 5. Be2 {[%clk 0:03:03.6]}
5... e6 {[%clk 0:03:06.3]} 6. Nbd2 {[%clk 0:03:02]} 6... Bd6 {[%clk 0:03:06.8]}
7. Bg3 {[%clk 0:03:02.8]} 7... O-O {[%clk 0:03:06.2]} 8. O-O {[%clk 0:03:03.7]}
8... Re8 {[%clk 0:03:06.9]} 9. Bd3 {[%clk 0:03:03.2]} 9... Bxd3 {[%clk
0:02:58.3]} 10. cxd3 {[%clk 0:03:04.1]} 10... Bxg3 {[%clk 0:02:59.4]} 11. hxg3
{[%clk 0:03:04.8]} 11... Nbd7 {[%clk 0:03:00.2]} 12. Rc1 {[%clk 0:03:01.2]}
12... e5 {[%clk 0:03:00.5]} 13. dxe5 {[%clk 0:02:59.9]} 13... Nxe5 {[%clk
0:03:02.4]} 14. Nxe5 {[%clk 0:03:01.5]} 14... Rxe5 {[%clk 0:03:03.1]} 15. d4
{[%clk 0:03:03.4]} 15... Re8 {[%clk 0:03:03.6]} 16. b4 {[%clk 0:03:00.4]} 16...
a6 {[%clk 0:03:03.1]} 17. a4 {[%clk 0:03:00.1]} 17... Ne4 {[%clk 0:03:03.9]} 18.
Nb3 {[%clk 0:02:55.7]} 18... Qg5 {[%clk 0:03:02.4]} 19. Nc5 {[%clk 0:02:52.2]}
19... Nxc5 {[%clk 0:03:01.7]} 20. bxc5 {[%clk 0:02:54.1]} 20... Rad8 {[%clk
0:03:00.7]} 21. Rb1 {[%clk 0:02:54.7]} 21... Rd7 {[%clk 0:03:01.1]} 22. Rb3
{[%clk 0:02:54.5]} 22... h5 {[%clk 0:02:52.7]} 23. Qc2 {[%clk 0:02:52]} 23...
Re6 {[%clk 0:02:51]} 24. Rfb1 {[%clk 0:02:43.6]} 24... Rg6 {[%clk 0:02:48.9]}
25. Qe2 {[%clk 0:02:27.8]} 25... h4 {[%clk 0:02:47]} 26. g4 {[%clk 0:02:28.8]}
26... Re7 {[%clk 0:01:58.5]} 27. Rxb7 {[%clk 0:02:23.7]} 27... Re4 {[%clk
0:01:59.1]} 28. f4 {[%clk 0:01:13]} 28... Qxg4 {[%clk 0:01:44.7]} 29. Qxg4
{[%clk 0:01:11.3]} 29... Rxg4 {[%clk 0:01:46.6]} 30. Kf2 {[%clk 0:01:08.4]}
30... Rg3 {[%clk 0:01:44.3]} 31. R1b3 {[%clk 0:01:08.3]} 31... g5 {[%clk
0:01:42.4]} 32. fxg5 {[%clk 0:01:07.2]} 32... Reg4 {[%clk 0:01:42.1]} 33. Rc7
{[%clk 0:01:02.3]} 33... Rxg2+ {[%clk 0:01:42.1]} 34. Kf3 {[%clk 0:01:03.9]}
34... R4g3+ {[%clk 0:01:28.6]} 35. Kf4 {[%clk 0:01:03.7]} 35... Rg4+ {[%clk
0:01:21.7]} 36. Kf3 {[%clk 0:00:54.7]} 36... R4g3+ {[%clk 0:00:57.7]} 37. Kf4
{[%clk 0:00:55.2]} 37... Rf2+ {[%clk 0:00:50.7]} 38. Ke5 {[%clk 0:00:52.3]}
38... h3 {[%clk 0:00:52.1]} 39. Rb1 {[%clk 0:00:35.6]} 39... h2 {[%clk
0:00:51.2]} 40. Rh1 {[%clk 0:00:35.9]} 40... Rxg5+ {[%clk 0:00:49.2]} 41. Kd6
{[%clk 0:00:35.5]} 41... Rg1 {[%clk 0:00:50.2]} 42. Rxh2 {[%clk 0:00:34.5]}
42... Rxh2 {[%clk 0:00:52.1]} 43. Kxc6 {[%clk 0:00:34.7]} 43... Re1 {[%clk
0:00:49.8]} 44. Re7 {[%clk 0:00:35.5]} 44... f5 {[%clk 0:00:43.2]} 45. Re5
{[%clk 0:00:29.4]} 45... Kg7 {[%clk 0:00:37.7]} 46. Kxd5 {[%clk 0:00:30.5]}
46... Kf6 {[%clk 0:00:38.9]} 47. Kd6 {[%clk 0:00:23.5]} 47... Rhe2 {[%clk
0:00:36.6]} 48. Re6+ {[%clk 0:00:17.6]} 48... Kf7 {[%clk 0:00:37.1]} 49. Re7+
{[%clk 0:00:15.7]} 49... Kf6 {[%clk 0:00:38.4]} 50. c6 {[%clk 0:00:12]} 50...
Rxe3 {[%clk 0:00:38.6]} 51. c7 {[%clk 0:00:11.7]} 51... Re6+ {[%clk 0:00:32.9]}
52. Rxe6+ {[%clk 0:00:11.7]} 52... Rxe6+ {[%clk 0:00:33.4]} 53. Kc5 {[%clk
0:00:07.5]} 53... Re8 {[%clk 0:00:32.1]} 54. Kc6 {[%clk 0:00:06.9]} 54... f4
{[%clk 0:00:32.9]} 55. d5 {[%clk 0:00:08.4]} 55... f3 {[%clk 0:00:31.3]} 56. d6
{[%clk 0:00:09.7]} 56... f2 {[%clk 0:00:31.8]} 57. d7 {[%clk 0:00:11.3]} 57...
Re6+ {[%clk 0:00:15.1]} 58. Kb7 {[%clk 0:00:12.3]} 58... f1=Q {[%clk 0:00:11.9]}
59. d8=Q+ {[%clk 0:00:13.5]} 59... Re7 {[%clk 0:00:11.9]} 60. Qd4+ {[%clk
0:00:09.6]} 60... Kf7 {[%clk 0:00:10.8]} 61. Qd5+ {[%clk 0:00:10.4]} 61... Kf6
{[%clk 0:00:11]} 62. Qd6+ {[%clk 0:00:10.7]} 62... Kf7 {[%clk 0:00:10.7]} 63.
Kb8 {[%clk 0:00:11.6]} 63... Qb1+ {[%clk 0:00:09.3]} 64. Ka8 {[%clk 0:00:11.8]}
64... Qc2 {[%clk 0:00:06.8]} 65. Qd5+ {[%clk 0:00:11]} 65... Kf8 {[%clk
0:00:07.8]} 66. Qf3+ {[%clk 0:00:08]} 66... Ke8 {[%clk 0:00:07.7]} 67. Qh5+
{[%clk 0:00:09.4]} 67... Kd7 {[%clk 0:00:08.2]} 68. Qg4+ {[%clk 0:00:05.6]}
68... Kxc7 {[%clk 0:00:08.7]} 69. Qf4+ {[%clk 0:00:07.2]} 69... Kd7 {[%clk
0:00:09.3]} 70. Qf5+ {[%clk 0:00:07.4]} 70... Qxf5 {[%clk 0:00:09.3]} 71. Ka7
{[%clk 0:00:08]} 71... Qc5+ {[%clk 0:00:10.1]} 72. Kxa6 {[%clk 0:00:09.2]} 72...
Re6+ {[%clk 0:00:11.4]} 73. Kb7 {[%clk 0:00:10.8]} 73... Qb6+ {[%clk 0:00:12.5]}
74. Ka8 {[%clk 0:00:12.7]} 74... Re8# {[%clk 0:00:13.8]} 0-1

[Event "*** Titled Tuesday 3|2 Blitz (Early)"]
[Site "Chess.com"]
[Date "2017.01.03"]
[Round "1"]
[White "Iball95"]
[Black "Goala"]
[Result "0-1"]
[WhiteElo "2459"]
[BlackElo "2217"]
[TimeControl "180+2"]
[EndTime "11:12:03 PST"]
[Termination "Goala won by resignation"]

1. e4 {[%clk 0:03:02]} 1... e6 {[%clk 0:03:01.5]} 2. d4 {[%clk 0:03:00.9]} 2...
d5 {[%clk 0:03:02.9]} 3. Nc3 {[%clk 0:02:59.6]} 3... Nf6 {[%clk 0:03:03.7]} 4.
e5 {[%clk 0:02:59.7]} 4... Nfd7 {[%clk 0:03:03.9]} 5. f4 {[%clk 0:03:00.4]} 5...
c5 {[%clk 0:03:01.4]} 6. Nf3 {[%clk 0:02:59.5]} 6... Nc6 {[%clk 0:02:59.5]} 7.
Be3 {[%clk 0:02:57.3]} 7... cxd4 {[%clk 0:02:58.4]} 8. Nxd4 {[%clk 0:02:57.4]}
8... Bc5 {[%clk 0:02:56.8]} 9. Qd2 {[%clk 0:02:55.6]} 9... a6 {[%clk 0:02:57.8]}
10. O-O-O {[%clk 0:02:48.6]} 10... Bxd4 {[%clk 0:02:58.7]} 11. Bxd4 {[%clk
0:02:45.8]} 11... b5 {[%clk 0:03:00.3]} 12. Be3 {[%clk 0:02:41.4]} 12... Qc7
{[%clk 0:03:01.4]} 13. Kb1 {[%clk 0:02:40.4]} 13... O-O {[%clk 0:03:02.1]} 14.
h4 {[%clk 0:02:39.1]} 14... b4 {[%clk 0:03:03.4]} 15. Ne2 {[%clk 0:02:39.5]}
15... a5 {[%clk 0:03:04.7]} 16. Nd4 {[%clk 0:02:38.5]} 16... Ba6 {[%clk
0:03:05.1]} 17. Nb5 {[%clk 0:02:29.4]} 17... Bxb5 {[%clk 0:02:59.1]} 18. Bxb5
{[%clk 0:02:31.3]} 18... Rfc8 {[%clk 0:03:00.5]} 19. h5 {[%clk 0:02:25.3]} 19...
Ne7 {[%clk 0:02:43]} 20. g4 {[%clk 0:02:15.9]} 20... Nc5 {[%clk 0:02:44.1]} 21.
Bxc5 {[%clk 0:01:42]} 21... Qxc5 {[%clk 0:02:44.6]} 22. Bd3 {[%clk 0:01:43.9]}
22... Nc6 {[%clk 0:02:38.5]} 23. h6 {[%clk 0:01:35.9]} 23... g6 {[%clk
0:02:37.4]} 24. Rhe1 {[%clk 0:01:34.6]} 24... a4 {[%clk 0:02:37.4]} 25. f5
{[%clk 0:01:34]} 25... a3 {[%clk 0:02:09.8]} 26. fxe6 {[%clk 0:01:23.3]} 26...
fxe6 {[%clk 0:02:10.7]} 27. Qg5 {[%clk 0:00:41.2]} 27... Qe7 {[%clk 0:02:00.9]}
28. Qxe7 {[%clk 0:00:28.2]} 28... Nxe7 {[%clk 0:02:02.8]} 29. Rf1 {[%clk
0:00:28.8]} 29... Rf8 {[%clk 0:01:52.5]} 30. Rf6 {[%clk 0:00:27.6]} 30... Rxf6
{[%clk 0:01:46.7]} 31. exf6 {[%clk 0:00:29.5]} 31... Nc6 {[%clk 0:01:46.8]} 32.
g5 {[%clk 0:00:29.7]} 32... Kf7 {[%clk 0:01:36.3]} 33. Re1 {[%clk 0:00:20.2]}
33... Nd4 {[%clk 0:01:33.2]} 34. Re3 {[%clk 0:00:16.5]} 34... axb2 {[%clk
0:01:22]} 35. Kxb2 {[%clk 0:00:18.4]} 35... Re8 {[%clk 0:01:22.2]} 36. c3 {[%clk
0:00:18.4]} 36... bxc3+ {[%clk 0:01:19.8]} 37. Kxc3 {[%clk 0:00:20.3]} 37... e5
{[%clk 0:01:17.8]} 38. a4 {[%clk 0:00:18.8]} 38... Nf5 {[%clk 0:01:08.7]} 39.
Re1 {[%clk 0:00:15]} 39... e4 {[%clk 0:01:06.7]} 40. Bb5 {[%clk 0:00:16.3]}
40... d4+ {[%clk 0:01:06.7]} 41. Kc4 {[%clk 0:00:16.8]} 41... Rc8+ {[%clk
0:01:03.4]} 42. Kd5 {[%clk 0:00:17.2]} 42... e3 {[%clk 0:01:03.1]} 43. Bd3
{[%clk 0:00:18]} 43... Rd8+ {[%clk 0:00:58.3]} 44. Kc5 {[%clk 0:00:19.2]} 44...
Nh4 {[%clk 0:00:53.4]} 45. a5 {[%clk 0:00:19.5]} 45... Nf3 {[%clk 0:00:54.3]}
46. Rb1 {[%clk 0:00:20.4]} 46... Nxg5 {[%clk 0:00:55.3]} 47. a6 {[%clk
0:00:20.9]} 47... Ne6+ {[%clk 0:00:51.4]} 48. Kc6 {[%clk 0:00:21.6]} 48... Ra8
{[%clk 0:00:12.9]} 49. Kb7 {[%clk 0:00:21.6]} 49... Rd8 {[%clk 0:00:13.8]} 50.
a7 {[%clk 0:00:22.4]} 50... Nc5+ {[%clk 0:00:15.3]} 51. Kc7 {[%clk 0:00:22.7]}
51... Ra8 {[%clk 0:00:13.1]} 52. Bc4+ {[%clk 0:00:23.7]} 52... Kxf6 {[%clk
0:00:13.7]} 53. Kb6 {[%clk 0:00:25]} 53... Ne4 {[%clk 0:00:10.1]} 54. Kb7 {[%clk
0:00:24]} 54... Rxa7+ {[%clk 0:00:11.6]} 55. Kxa7 {[%clk 0:00:25.7]} 55... Nd2
{[%clk 0:00:13.4]} 56. Rb6+ {[%clk 0:00:25.5]} 56... Ke5 {[%clk 0:00:13.7]} 57.
Bd3 {[%clk 0:00:26.3]} 57... Nf3 {[%clk 0:00:09]} 58. Rxg6 {[%clk 0:00:26.9]}
58... Ne1 {[%clk 0:00:10.1]} 59. Rg5+ {[%clk 0:00:27.2]} 59... Kf4 {[%clk
0:00:10.9]} 60. Rf5+ {[%clk 0:00:24.3]} 60... Kg4 {[%clk 0:00:11.7]} 61. Bb1
{[%clk 0:00:25.5]} 61... d3 {[%clk 0:00:12.5]} 62. Rd5 {[%clk 0:00:23.5]} 62...
e2 {[%clk 0:00:11.3]} 63. Kb6 {[%clk 0:00:20.1]} 63... Nc2 {[%clk 0:00:11.6]}
64. Rxd3 {[%clk 0:00:04.4]} 64... e1=Q {[%clk 0:00:11.4]} 65. Bxc2 {[%clk
0:00:06.3]} 65... Qb4+ {[%clk 0:00:11.7]} 66. Kc6 {[%clk 0:00:05.2]} 66... Qc4+
{[%clk 0:00:12.7]} 67. Kd7 {[%clk 0:00:05.8]} 67... Qxc2 {[%clk 0:00:14.6]} 68.
Rd6 {[%clk 0:00:06.6]} 68... Kg5 {[%clk 0:00:12]} 69. Ke7 {[%clk 0:00:07.6]}
69... Qe4+ {[%clk 0:00:11.4]} 70. Kd7 {[%clk 0:00:08.4]} 70... Qf5+ {[%clk
0:00:11.9]} 71. Ke7 {[%clk 0:00:09.2]} 71... Qe5+ {[%clk 0:00:11.8]} 72. Kd7
{[%clk 0:00:10.2]} 72... Kh5 {[%clk 0:00:12.7]} 73. Re6 {[%clk 0:00:10.3]} 73...
Qf4 {[%clk 0:00:10.7]} 74. Ke7 {[%clk 0:00:11]} 74... Qg5+ {[%clk 0:00:10]} 75.
Kf7 {[%clk 0:00:11.5]} 75... Qf5+ {[%clk 0:00:10.5]} 76. Rf6 {[%clk 0:00:12]}
76... Qd7+ {[%clk 0:00:11.4]} 77. Kg8 {[%clk 0:00:13]} 77... Kg5 {[%clk
0:00:08]} 78. Rf7 {[%clk 0:00:13.8]} 78... Qe6 {[%clk 0:00:02.9]} 79. Kg7 {[%clk
0:00:13.4]} 79... Qxh6+ {[%clk 0:00:02.9]} 80. Kg8 {[%clk 0:00:13]} 80... Qg6+
{[%clk 0:00:03.9]} 81. Kf8 {[%clk 0:00:13.9]} 81... Qxf7+ {[%clk 0:00:05]} 82.
Kxf7 {[%clk 0:00:15.8]} 82... h5 {[%clk 0:00:06.9]} 0-1

[Event "*** Titled Tuesday 3|2 Blitz (Early)"]
[Site "Chess.com"]
[Date "2017.01.03"]
[Round "1"]
[White "macko06"]
[Black "boredoldman"]
[Result "1-0"]
[WhiteElo "2276"]
[BlackElo "2491"]
[TimeControl "180+2"]
[EndTime "11:12:53 PST"]
[Termination "macko06 won by checkmate"]

1. d4 {[%clk 0:03:02]} 1... Nf6 {[%clk 0:03:00.9]} 2. Nf3 {[%clk 0:03:03.1]}
2... c5 {[%clk 0:03:00.9]} 3. e3 {[%clk 0:03:04]} 3... e6 {[%clk 0:03:01.8]} 4.
Bd3 {[%clk 0:03:03.7]} 4... Nc6 {[%clk 0:03:02.7]} 5. b3 {[%clk 0:03:03.6]} 5...
cxd4 {[%clk 0:02:54.3]} 6. exd4 {[%clk 0:03:04.8]} 6... d5 {[%clk 0:02:52.2]} 7.
O-O {[%clk 0:03:05.7]} 7... Bd6 {[%clk 0:02:52.6]} 8. Bb2 {[%clk 0:03:06.6]}
8... Ne4 {[%clk 0:02:50.9]} 9. Qe2 {[%clk 0:03:02.1]} 9... f5 {[%clk 0:02:48.2]}
10. Ne5 {[%clk 0:02:54.5]} 10... O-O {[%clk 0:02:39.2]} 11. Nd2 {[%clk
0:02:43.2]} 11... Qf6 {[%clk 0:02:32.4]} 12. f4 {[%clk 0:02:22.1]} 12... g5
{[%clk 0:02:24.9]} 13. fxg5 {[%clk 0:02:06.1]} 13... Qxg5 {[%clk 0:02:19.3]} 14.
Ndf3 {[%clk 0:02:07.4]} 14... Qg7 {[%clk 0:01:48.3]} 15. c4 {[%clk 0:02:02.4]}
15... Bd7 {[%clk 0:01:32.3]} 16. cxd5 {[%clk 0:01:58.4]} 16... exd5 {[%clk
0:01:34.2]} 17. Nxc6 {[%clk 0:01:56.4]} 17... bxc6 {[%clk 0:01:33.8]} 18. Ne5
{[%clk 0:01:57.8]} 18... Rae8 {[%clk 0:01:31.8]} 19. Qf3 {[%clk 0:01:49.3]}
19... Nd2 {[%clk 0:01:24.9]} 20. Qf2 {[%clk 0:01:50.1]} 20... Nxf1 {[%clk
0:01:25.9]} 21. Rxf1 {[%clk 0:01:51.7]} 21... Kh8 {[%clk 0:01:07.9]} 22. Qf4
{[%clk 0:01:50.2]} 22... c5 {[%clk 0:01:07.3]} 23. Qf3 {[%clk 0:01:35.4]} 23...
Bxe5 {[%clk 0:01:02.3]} 24. dxe5 {[%clk 0:01:34]} 24... d4 {[%clk 0:01:04]} 25.
b4 {[%clk 0:01:25.7]} 25... Qxe5 {[%clk 0:01:03.1]} 26. bxc5 {[%clk 0:01:25.7]}
26... Be6 {[%clk 0:00:53.3]} 27. Qf2 {[%clk 0:01:19.8]} 27... Rd8 {[%clk
0:00:51.3]} 28. Re1 {[%clk 0:01:08.5]} 28... Qf6 {[%clk 0:00:48]} 29. c6 {[%clk
0:00:37.6]} 29... Rf7 {[%clk 0:00:43.2]} 30. Rc1 {[%clk 0:00:30.4]} 30... Bc8
{[%clk 0:00:37.4]} 31. Rc4 {[%clk 0:00:25.9]} 31... Kg8 {[%clk 0:00:26.6]} 32.
Bxd4 {[%clk 0:00:22.5]} 32... Qg5 {[%clk 0:00:24.6]} 33. Be3 {[%clk 0:00:20.7]}
33... Qg7 {[%clk 0:00:25.4]} 34. Bd4 {[%clk 0:00:20.1]} 34... Qg4 {[%clk
0:00:23.5]} 35. Be2 {[%clk 0:00:16.6]} 35... Qg6 {[%clk 0:00:22.5]} 36. Rc1
{[%clk 0:00:12.2]} 36... Re8 {[%clk 0:00:19.4]} 37. Bf3 {[%clk 0:00:13.3]} 37...
Rfe7 {[%clk 0:00:19.9]} 38. Bd5+ {[%clk 0:00:13.6]} 38... Be6 {[%clk 0:00:20.8]}
39. Bf3 {[%clk 0:00:14.9]} 39... f4 {[%clk 0:00:21.2]} 40. c7 {[%clk 0:00:14.3]}
40... Bc8 {[%clk 0:00:22]} 41. Bd5+ {[%clk 0:00:13.3]} 41... Re6 {[%clk
0:00:16.6]} 42. Bxe6+ {[%clk 0:00:13.8]} 42... Qxe6 {[%clk 0:00:17.2]} 43. Bxa7
{[%clk 0:00:12.2]} 43... Qe4 {[%clk 0:00:13.4]} 44. h3 {[%clk 0:00:11.5]} 44...
Bb7 {[%clk 0:00:13.8]} 45. Bd4 {[%clk 0:00:07.6]} 45... Rc8 {[%clk 0:00:13.9]}
46. Bb6 {[%clk 0:00:08.2]} 46... Kf7 {[%clk 0:00:13.8]} 47. Rf1 {[%clk
0:00:08.4]} 47... Rg8 {[%clk 0:00:12.5]} 48. Qxf4+ {[%clk 0:00:07.9]} 48... Qxf4
{[%clk 0:00:11.6]} 49. Rxf4+ {[%clk 0:00:09.8]} 49... Ke6 {[%clk 0:00:13.2]} 50.
Rf2 {[%clk 0:00:09.5]} 50... Kd7 {[%clk 0:00:13.8]} 51. Rc2 {[%clk 0:00:09.4]}
51... Rg6 {[%clk 0:00:13.9]} 52. Be3 {[%clk 0:00:08.4]} 52... Rg8 {[%clk
0:00:12.8]} 53. Bf4 {[%clk 0:00:09.7]} 53... Be4 {[%clk 0:00:13.5]} 54. Rd2+
{[%clk 0:00:08.5]} 54... Kc8 {[%clk 0:00:14.3]} 55. g3 {[%clk 0:00:10]} 55...
Bf5 {[%clk 0:00:14.1]} 56. Kg2 {[%clk 0:00:10.3]} 56... Re8 {[%clk 0:00:15.1]}
57. g4 {[%clk 0:00:10.4]} 57... Bd7 {[%clk 0:00:15.8]} 58. Kg3 {[%clk
0:00:11.6]} 58... Re1 {[%clk 0:00:15.7]} 59. Kh4 {[%clk 0:00:11.3]} 59... Rf1
{[%clk 0:00:16.6]} 60. Kg5 {[%clk 0:00:12.7]} 60... Rh1 {[%clk 0:00:15.1]} 61.
Rd3 {[%clk 0:00:10.2]} 61... Rf1 {[%clk 0:00:15.9]} 62. Be5 {[%clk 0:00:11]}
62... Rf7 {[%clk 0:00:16]} 63. Bg3 {[%clk 0:00:09.3]} 63... Be6 {[%clk
0:00:16.8]} 64. Re3 {[%clk 0:00:09.4]} 64... Bd7 {[%clk 0:00:16]} 65. Bh4 {[%clk
0:00:08.1]} 65... Kxc7 {[%clk 0:00:12.9]} 66. Bg3+ {[%clk 0:00:08.8]} 66... Kc8
{[%clk 0:00:14]} 67. Be5 {[%clk 0:00:09.8]} 67... Re7 {[%clk 0:00:14.7]} 68. Bf4
{[%clk 0:00:10]} 68... Rf7 {[%clk 0:00:15]} 69. Be5 {[%clk 0:00:10.9]} 69... Kb7
{[%clk 0:00:15.9]} 70. Bf6 {[%clk 0:00:11.2]} 70... Kc6 {[%clk 0:00:12.2]} 71.
Re7 {[%clk 0:00:12]} 71... Rxe7 {[%clk 0:00:13.6]} 72. Bxe7 {[%clk 0:00:13.3]}
72... Be6 {[%clk 0:00:15.5]} 73. a3 {[%clk 0:00:13.3]} 73... Kd7 {[%clk
0:00:16.4]} 74. Bb4 {[%clk 0:00:14.4]} 74... Kc6 {[%clk 0:00:17.4]} 75. Kh6
{[%clk 0:00:15.8]} 75... Bg8 {[%clk 0:00:18.4]} 76. Kg7 {[%clk 0:00:16.8]} 76...
Bc4 {[%clk 0:00:18.6]} 77. Kxh7 {[%clk 0:00:18.2]} 77... Bf1 {[%clk 0:00:20.5]}
78. h4 {[%clk 0:00:18]} 78... Bd3+ {[%clk 0:00:22.4]} 79. Kh6 {[%clk 0:00:19]}
79... Kd5 {[%clk 0:00:24.3]} 80. g5 {[%clk 0:00:20.4]} 80... Ke6 {[%clk
0:00:26.2]} 81. a4 {[%clk 0:00:21.1]} 81... Ba6 {[%clk 0:00:26.6]} 82. a5 {[%clk
0:00:22.4]} 82... Kf7 {[%clk 0:00:27.6]} 83. Bc5 {[%clk 0:00:23.8]} 83... Kg8
{[%clk 0:00:28.3]} 84. Bb6 {[%clk 0:00:25.4]} 84... Bc4 {[%clk 0:00:29.2]} 85.
Kg6 {[%clk 0:00:25.6]} 85... Ba6 {[%clk 0:00:30.5]} 86. Kf6 {[%clk 0:00:27]}
86... Bd3 {[%clk 0:00:32.4]} 87. g6 {[%clk 0:00:27]} 87... Ba6 {[%clk
0:00:33.5]} 88. h5 {[%clk 0:00:28.3]} 88... Be2 {[%clk 0:00:34]} 89. h6 {[%clk
0:00:29.6]} 89... Bc4 {[%clk 0:00:33.6]} 90. Ke7 {[%clk 0:00:29]} 90... Ba6
{[%clk 0:00:34]} 91. Kd6 {[%clk 0:00:30.2]} 91... Bd3 {[%clk 0:00:35]} 92. g7
{[%clk 0:00:25]} 92... Kh7 {[%clk 0:00:36.2]} 93. Be3 {[%clk 0:00:26]} 93... Ba6
{[%clk 0:00:36.2]} 94. Kc7 {[%clk 0:00:27]} 94... Bd3 {[%clk 0:00:37.2]} 95. Kb6
{[%clk 0:00:28.4]} 95... Be4 {[%clk 0:00:38]} 96. a6 {[%clk 0:00:29.9]} 96...
Kg8 {[%clk 0:00:39.1]} 97. Kc7 {[%clk 0:00:31.4]} 97... Kh7 {[%clk 0:00:40.5]}
98. Kb8 {[%clk 0:00:32.9]} 98... Bd5 {[%clk 0:00:40.7]} 99. a7 {[%clk
0:00:34.3]} 99... Be4 {[%clk 0:00:40.2]} 100. a8=Q {[%clk 0:00:34.9]} 100...
Bxa8 {[%clk 0:00:41]} 101. Kxa8 {[%clk 0:00:36.8]} 101... Kg8 {[%clk 0:00:42.2]}
102. Kb7 {[%clk 0:00:38.7]} 102... Kh7 {[%clk 0:00:44.1]} 103. Kc6 {[%clk
0:00:40.3]} 103... Kg8 {[%clk 0:00:46]} 104. Kd6 {[%clk 0:00:41.8]} 104... Kh7
{[%clk 0:00:47.9]} 105. Ke7 {[%clk 0:00:42.9]} 105... Kg8 {[%clk 0:00:43.2]}
106. Bd4 {[%clk 0:00:41.8]} 106... Kh7 {[%clk 0:00:44.6]} 107. Kf7 {[%clk
0:00:43.3]} 107... Kxh6 {[%clk 0:00:45.6]} 108. g8=Q {[%clk 0:00:44.9]} 108...
Kh5 {[%clk 0:00:47.4]} 109. Bf2 {[%clk 0:00:43.4]} 109... Kh6 {[%clk 0:00:47.9]}
110. Qg6# {[%clk 0:00:45.3]} 1-0